fUST/lending_fUST_20240429
["ID","MTS","AMOUNT","RATE_DAILY","PERIOD"]
[324833703,1714362641535,-500.0,0.00013698,2]
[324833704,1714362641544,-500.0,0.00013698,2]
[324833705,1714362641553,-920.53,0.00013698,2]
[324833706,1714362641563,-500.0,0.00013698,2]
[324833707,1714362641572,-500.0,0.00013698,2]
[324833708,1714362641581,-500.89912745,0.00013698,2]
[324833709,1714362641590,-543.21305827,0.00013698,2]
[324833710,1714362641599,-500.0,0.00013698,2]
[324833711,1714362641609,-500.0,0.00013698,2]
[324833712,1714362641619,-500.0,0.00013698,2]
[324833713,1714362641628,-500.0,0.00013698,2]
[324833714,1714362641637,-500.0,0.00013698,2]
[324833715,1714362641646,-500.0,0.00013698,2]
[324833716,1714362641655,-609.55,0.00013698,2]
[324833717,1714362641668,-505.0342783,0.00013698,2]
[324833718,1714362641677,-500.0,0.00013698,2]
[324833719,1714362641686,-500.0,0.00013698,2]
[324833720,1714362641696,-500.0,0.00013698,2]
[324833721,1714362641705,-500.0,0.00013698,2]
[324833722,1714362641714,-500.0,0.00013698,2]
[324833723,1714362641723,-887.08,0.00013698,2]
[324833724,1714362641732,-500.0,0.00013698,2]
[324833725,1714362641741,-586.18014146,0.00013698,2]
[324833726,1714362641750,-500.0,0.00013698,2]
[324833727,1714362641760,-500.0,0.00013698,2]
[324833728,1714362641769,-641.95,0.00013698,2]
[324833729,1714362641778,-500.0,0.00013698,2]
[324833730,1714362641787,-500.0,0.00013698,2]
[324833731,1714362641796,-500.0,0.00013698,2]
[324833732,1714362641805,-500.0,0.00013698,2]
[324833733,1714362641814,-758.32,0.00013698,2]
[324833734,1714362641823,-500.0,0.00013698,2]
[324833735,1714362641833,-580.19282062,0.00013698,2]
[324833736,1714362641842,-500.0,0.00013698,2]
[324833737,1714362641851,-529.97634665,0.00013698,2]
[324833738,1714362641860,-500.0,0.00013698,2]
[324833739,1714362641869,-500.0,0.00013698,2]
[324833740,1714362641878,-500.0,0.00013698,2]
[324833741,1714362641886,-500.0,0.00013698,2]
[324833742,1714362641896,-538.31256169,0.00013698,2]
[324833743,1714362641905,-500.0,0.00013698,2]
[324833744,1714362641916,-500.0,0.00013698,2]
[324833745,1714362641925,-500.0,0.00013698,2]
[324833746,1714362641934,-500.0,0.00013698,2]
[324833747,1714362641943,-500.0,0.00013698,2]
[324833748,1714362641952,-500.0,0.00013698,2]
[324833749,1714362641961,-500.0,0.00013698,2]
[324833750,1714362641970,-500.0,0.00013698,2]
[324833751,1714362641979,-500.0,0.00013698,2]
[324833752,1714362641987,-493.88670057,0.00013698,2]
[324833753,1714362641997,-449.63143447,0.00013698,2]
[324833754,1714362642006,-500.0,0.00013698,2]
[324833755,1714362642015,-500.0,0.00013698,3]
[324833756,1714362642023,-500.0,0.00013698,2]
[324833757,1714362642033,-500.0,0.00013698,2]
[324833758,1714362642042,-500.0,0.00013698,2]
[324833759,1714362642052,-1234.72,0.00013698,2]
[324833760,1714362642061,-500.0,0.00013698,2]
[324833761,1714362642070,-500.0,0.00013698,3]
[324833762,1714362642080,-500.0,0.00013698,2]
[324833763,1714362642089,-500.0,0.00013698,2]
[324833764,1714362642098,-500.0,0.00013698,2]
[324833765,1714362642108,-1062.48,0.00013698,2]
[324833766,1714362642118,-500.0,0.00013698,2]
[324833767,1714362642128,-500.0,0.00013698,2]
[324833768,1714362642137,-500.0,0.00013698,2]
[324833769,1714362642146,-500.0,0.00013698,2]
[324833770,1714362642156,-526.81243806,0.00013698,2]
[324833771,1714362642167,-736.84,0.00013698,2]
[324833772,1714362642176,-500.0,0.00013698,2]
[324833773,1714362642185,-500.17076189,0.00013698,2]
[324833774,1714362642194,-1217.96,0.00013698,2]
[324833775,1714362642203,-500.0,0.00013698,2]
[324833776,1714362642213,-3937.15,0.00013698,2]
[324833777,1714362642222,-668.65,0.00013698,2]
[324833778,1714362642231,-500.0,0.00013698,2]
[324833779,1714362642241,-500.0,0.00013698,2]
[324833780,1714362642250,-500.0,0.00013698,2]
[324833781,1714362642259,-500.0,0.00013698,2]
[324833782,1714362642268,-500.0,0.00013698,2]
[324833783,1714362642277,-500.0,0.00013698,2]
[324833784,1714362642287,-2605.061331,0.00013698,2]
[324833785,1714362642297,-500.0,0.00013698,2]
[324833786,1714362642306,-2605.061331,0.00013698,2]
[324833787,1714362642315,-410.76921222,0.00013698,2]
[324833788,1714362642325,-2605.061331,0.00013698,2]
[324833789,1714362642334,-2540.76,0.00013698,2]
[324833790,1714362642343,-500.0,0.00013698,2]
[324833791,1714362642352,-7168.04,0.00013698,2]
[324833792,1714362642362,-581.98,0.00013698,2]
[324833793,1714362642372,-2605.061331,0.00013698,2]
[324833794,1714362642381,-2605.061331,0.00013698,2]
[324833795,1714362642391,-2605.061331,0.00013698,2]
[324833796,1714362642401,-636.28,0.00013698,2]
[324833797,1714362642410,-500.0,0.00013698,2]
[324833798,1714362642420,-500.0,0.00013698,2]
[324833799,1714362642429,-1227.16,0.00013698,2]
[324833800,1714362642438,-500.0,0.00013698,2]
[324833801,1714362642447,-646.96111873,0.00013698,2]
[324833802,1714362642456,-4965.07,0.00013698,2]
[324833803,1714362642466,-856.13,0.00013698,2]
[324833804,1714362642475,-1611.34,0.00013698,2]
[324833805,1714362642484,-227.07133085,0.00013698,2]
[324833806,1714362642493,-1225.04,0.00013698,2]
[324833807,1714362642503,-500.0,0.00013698,2]
[324833808,1714362642512,-500.0,0.00013698,2]
[324833809,1714362642521,-528.5384743,0.00013698,2]
[324833810,1714362642530,-500.0,0.00013698,2]
[324833811,1714362642540,-500.0,0.00013698,2]
[324833812,1714362642550,-987.14,0.00013698,2]
[324833813,1714362642560,-500.0,0.00013698,2]
[324833814,1714362642569,-500.0,0.00013698,2]
[324833815,1714362642579,-500.0,0.00013698,2]
[324833816,1714362642588,-500.0,0.00013698,2]
[324833817,1714362642597,-500.0,0.00013698,2]
[324833818,1714362642607,-500.0,0.00013698,2]
[324833819,1714362642616,-8112.23294706,0.00013698,2]
[324833820,1714362642670,-933.23705294,0.00013698,2]
[324833822,1714362642680,-500.0,0.00013698,2]
[324833825,1714362642689,-500.0,0.00013698,2]
[324833828,1714362642698,-303.24448254,0.00013698,2]
[324833830,1714362642707,-500.0,0.00013698,2]
[324833832,1714362642717,-561.49,0.00013698,2]
[324833834,1714362642726,-637.24629471,0.00013698,2]
[324833836,1714362642735,-500.0,0.00013698,2]
[324833837,1714362642744,-3562.02,0.00013698,2]
[324833839,1714362642753,-500.0,0.00013698,2]
[324833841,1714362642763,-500.0,0.00013698,2]
[324833843,1714362642772,-513.47,0.00013698,2]
[324833844,1714362642782,-500.0,0.00013698,2]
[324833845,1714362642791,-500.0,0.00013698,2]
[324833847,1714362642800,-500.0,0.00013698,2]
[324833849,1714362642809,-502.96620153,0.00013698,2]
[324833850,1714362642818,-677.45,0.00013698,2]
[324833851,1714362642828,-509.08478671,0.00013698,2]
[324833852,1714362642837,-750.62,0.00013698,2]
[324833853,1714362642846,-500.0,0.00013698,2]
[324833855,1714362642855,-500.0,0.00013698,2]
[324833857,1714362642865,-500.0,0.00013698,2]
[324833859,1714362642874,-790.48,0.00013698,2]
[324833861,1714362642883,-500.0,0.00013698,2]
[324833863,1714362642892,-500.0,0.00013698,2]
[324833865,1714362642901,-500.0,0.00013698,2]
[324833867,1714362642911,-151.0,0.00013698,2]
[324833870,1714362642921,-151.0,0.00013698,2]
[324833872,1714362642931,-151.0,0.00013698,2]
[324833874,1714362642940,-1704.7,0.00013698,2]
[324833876,1714362642949,-500.0,0.00013698,2]
[324833880,1714362643045,-151.0,0.00013698,2]
[324833882,1714362643066,-151.0,0.00013698,2]
[324833883,1714362643075,-151.0,0.00013698,2]
[324833884,1714362643084,-500.0,0.00013698,2]
[324833885,1714362643093,-1018.12,0.00013698,2]
[324833886,1714362643103,-188.05174099,0.00013698,2]
[324833887,1714362643117,-311.94825901,0.00013698,2]
[324833888,1714362643128,-500.0,0.00013698,2]
[324833889,1714362643137,-840.91,0.00013698,2]
[324833890,1714362643147,-500.0,0.00013698,2]
[324833891,1714362643157,-251.90958633,0.00013698,2]
[324833892,1714362643168,-500.0,0.00013698,2]
[324833893,1714362643178,-500.0,0.00013698,2]
[324833894,1714362643187,-133.55783188,0.00013698,2]
[324833896,1714362643367,-366.44216812,0.00013698,2]
[324833897,1714362643377,-152.87232573,0.00013698,2]
[324833898,1714362643389,-347.12767427,0.00013698,2]
[324833899,1714362643398,-236.95698551,0.00013698,2]
[324834108,1714362670718,1000.0,0.00013458,2]
[324834109,1714362673460,154.84515485,0.00013011,2]
[324834110,1714362696310,212.26666393,9.999e-05,2]
[324834111,1714362698520,1000.0,0.00013433,2]
[324834112,1714362700396,1000.0,0.00013453,2]
[324834113,1714362700454,1000.0,0.00013439,2]
[324834114,1714362704168,1773.40663907,9.999e-05,2]
[324834115,1714362705669,206.23930448,9.999e-05,2]
[324834116,1714362713853,24900.0,0.00012588,2]
[324834117,1714362721733,154.79876161,0.00013433,2]
[324834118,1714362735766,179.79521238,0.00013433,2]
[324834119,1714362739381,2626.30439442,9.999e-05,2]
[324834120,1714362740791,158.88283105,9.999e-05,2]
[324834121,1714362743336,1203.25513556,9.999e-05,2]
[324834122,1714362758977,208.08192276,9.999e-05,2]
[324834124,1714362894464,500.0,0.00013698,4]
[324834125,1714362894725,500.0,0.00013698,5]
[324834126,1714362894982,500.0,0.00013698,6]
[324834127,1714362895240,500.0,0.00013698,7]
[324834128,1714362895524,500.0,0.00013698,8]
[324834129,1714362895784,500.0,0.00013698,9]
[324834130,1714362896037,500.0,0.00013698,10]
[324834131,1714362896325,500.0,0.00013698,11]
[324834132,1714362896629,500.0,0.00013698,12]
[324834133,1714362896859,500.0,0.00013698,13]
[324834134,1714362897132,500.0,0.00013698,14]
[324834135,1714362897680,500.0,0.00013698,15]
[324834159,1714363625108,-250.0,0.0001147,2]
[324834160,1714363625129,-300.0,0.00012196,2]
[324834161,1714363625148,-300.0,0.00012196,2]
[324834162,1714363625167,-15672.89435023,0.00012197,2]
[324834163,1714363625189,-11539.84162732,0.00012198,2]
[324834164,1714363626119,-7742.83815571,0.00012198,2]
[324834165,1714363632096,-5617.32021697,0.00012198,2]
[324834166,1714363632115,-498.57956333,0.00012326,2]
[324834167,1714363632135,-162.25127869,0.00012398,2]
[324834168,1714363632153,-4152.56435314,0.000125,2]
[324834169,1714363632172,-162.25127864,0.00012598,2]
[324834170,1714363632192,-162.25127864,0.00012798,2]
[324834171,1714363632211,-162.25127864,0.00012998,2]
[324834172,1714363632230,-153.7952465,0.00013178,2]
[324834173,1714363632250,-162.25127864,0.00013198,2]
[324834174,1714363632268,-186.0449282,0.00013243,2]
[324834175,1714363632287,-153.0,0.00013243,2]
[324834176,1714363632306,-153.0,0.00013243,2]
[324834177,1714363632326,-153.0,0.00013293,2]
[324834178,1714363632345,-420.0,0.00013385,2]
[324834179,1714363632364,-162.25127864,0.00013398,2]
[324834180,1714363632384,-420.0,0.00013415,2]
[324834181,1714363632407,-153.0,0.00013425,2]
[324834182,1714363632426,-1000.0,0.00013435,2]
[324834183,1714363632449,-1000.0,0.00013436,2]
[324834184,1714363632469,-1000.0,0.00013445,2]
[324834185,1714363632488,-1000.0,0.00013448,2]
[324834186,1714363632510,-1000.0,0.00013455,2]
[324834187,1714363632530,-1000.0,0.00013457,2]
[324834188,1714363632549,-1000.0,0.00013468,2]
[324834189,1714363632568,-1000.0,0.0001348,2]
[324834190,1714363632588,-1000.0,0.00013482,2]
[324834191,1714363632609,-1000.0,0.00013483,2]
[324834192,1714363632629,-1000.0,0.00013484,2]
[324834193,1714363632648,-1000.0,0.00013495,2]
[324834194,1714363632667,-1000.0,0.00013498,2]
[324834195,1714363632687,-520.68310617,0.0001351,2]
[324834196,1714363632709,-1000.0,0.0001351,2]
[324834197,1714363632729,-1000.0,0.00013524,2]
[324834198,1714363632748,-1000.0,0.00013525,2]
[324834199,1714363632768,-527.06931428,0.00013543,2]
[324834200,1714363641323,-472.93068572,0.00013543,2]
[324834201,1714363641343,-156.8134322,0.00013561,2]
[324834202,1714363641363,-155.11034974,0.00013561,2]
[324834203,1714363641384,-300.0,0.00013562,2]
[324834204,1714363641404,-1000.0,0.00013586,2]
[324834205,1714363641430,-1000.0,0.00013587,2]
[324834206,1714363641454,-1000.0,0.0001359,2]
[324834207,1714363641475,-1000.0,0.00013595,2]
[324834208,1714363641498,-162.25127864,0.00013598,2]
[324834209,1714363641517,-15442.1077937,0.00013599,2]
[324834210,1714363651097,-29001.8922063,0.00013599,2]
[324834211,1714363651117,-1000.0,0.000136,2]
[324834212,1714363651137,-317.78682225,0.0001361,2]
[324834213,1714363651157,-1000.0,0.00013635,2]
[324834214,1714363651177,-1000.0,0.00013642,2]
[324834215,1714363651196,-1000.0,0.00013647,2]
[324834216,1714363651216,-1000.0,0.00013651,2]
[324834217,1714363651235,-1000.0,0.00013678,2]
[324834218,1714363651255,-1000.0,0.00013687,2]
[324834219,1714363651274,-1031.51043822,0.00013692,2]
[324834220,1714363651293,-719.84911317,0.00013696,2]
[324834221,1714363651312,-154.8915759,0.00013696,2]
[324834222,1714363651332,-155.53802149,0.00013696,2]
[324834223,1714363651351,-154.84515485,0.00013696,2]
[324834224,1714363651371,-385.38242563,0.00013696,2]
[324834225,1714363651391,-155.14232645,0.00013696,2]
[324834226,1714363651413,-1096.69418564,0.00013696,2]
[324834227,1714363651434,-286.32427498,0.00013696,2]
[324834228,1714363651456,-285.35930197,0.00013696,2]
[324834229,1714363651476,-1882.61116434,0.00013696,2]
[324834230,1714363651499,-155.09738902,0.00013696,2]
[324834231,1714363651517,-301.25877735,0.00013696,2]
[324834232,1714363651536,-362.96593095,0.00013696,2]
[324834233,1714363651554,-943.08964218,0.00013696,2]
[324834234,1714363651573,-247.53145625,0.00013696,2]
[324834235,1714363651593,-347.21185163,0.00013696,2]
[324834236,1714363651612,-264.91044119,0.00013696,2]
[324834237,1714363651631,-155.29605843,0.00013696,2]
[324834238,1714363651649,-260.62016625,0.00013696,2]
[324834239,1714363651668,-203.6652063,0.00013696,2]
[324834240,1714363651688,-32335.77124321,0.00013696,2]
[324834241,1714363651709,-529.7028294,0.00013696,2]
[324834242,1714363651729,-510.31415295,0.00013696,2]
[324834243,1714363651749,-213.01228044,0.00013696,2]
[324834244,1714363651770,-454.12721237,0.00013696,2]
[324834245,1714363651790,-206.71890398,0.00013696,2]
[324834246,1714363651809,-159.33192973,0.00013696,2]
[324834247,1714363651828,-1717.4269753,0.00013696,2]
[324834248,1714363651849,-1344.08645934,0.00013696,2]
[324834249,1714363651869,-305.46854421,0.00013696,2]
[324834250,1714363651891,-1626.8974328,0.00013696,2]
[324834251,1714363651911,-1891.6935913,0.00013696,2]
[324834252,1714363651930,-247.69764059,0.00013696,2]
[324834253,1714363651950,-634.98965119,0.00013697,2]
[324834254,1714363651970,-500.0,0.00013698,2]
[324834255,1714363651989,-500.0,0.00013698,2]
[324834256,1714363652008,-573.62268151,0.00013698,2]
[324834257,1714363652027,-500.01281628,0.00013698,2]
[324834258,1714363652047,-520.99,0.00013698,2]
[324834259,1714363652068,-500.0,0.00013698,2]
[324834260,1714363652087,-500.0,0.00013698,2]
[324834261,1714363652107,-500.0,0.00013698,2]
[324834262,1714363652126,-500.0,0.00013698,2]
[324834263,1714363652145,-161.84105143,0.00013698,2]
[324834264,1714363652164,-596.76,0.00013698,2]
[324834265,1714363652183,-827.19,0.00013698,2]
[324834266,1714363652202,-500.0,0.00013698,2]
[324834267,1714363652222,-500.0,0.00013698,2]
[324834268,1714363652242,-2086.38,0.00013698,2]
[324834269,1714363652260,-656.37,0.00013698,2]
[324834270,1714363652280,-204.52213411,0.00013698,2]
[324834271,1714363652299,-500.0,0.00013698,2]
[324834272,1714363652437,-550.63,0.00013698,2]
[324834273,1714363652461,-500.0,0.00013698,2]
[324834274,1714363652480,-500.0,0.00013698,2]
[324834275,1714363652501,-636.48,0.00013698,2]
[324834276,1714363652521,-500.0,0.00013698,2]
[324834277,1714363652542,-500.0,0.00013698,2]
[324834278,1714363652563,-281.31968883,0.00013698,2]
[324834279,1714363652581,-500.0,0.00013698,2]
[324834280,1714363652601,-740.6,0.00013698,2]
[324834281,1714363652622,-500.0,0.00013698,2]
[324834282,1714363652642,-500.0,0.00013698,2]
[324834283,1714363652664,-323.25382167,0.00013698,2]
[324834284,1714363652684,-808.35,0.00013698,2]
[324834285,1714363652707,-484.58487953,0.00013698,2]
[324834286,1714363652727,-500.0,0.00013698,2]
[324834287,1714363652746,-500.0,0.00013698,2]
[324834288,1714363652766,-504.01309128,0.00013698,2]
[324834289,1714363652786,-500.0,0.00013698,2]
[324834290,1714363652808,-500.0,0.00013698,2]
[324834291,1714363652831,-500.0,0.00013698,3]
[324834292,1714363652853,-500.40387787,0.00013698,2]
[324834293,1714363652876,-500.0,0.00013698,2]
[324834294,1714363652899,-500.12952987,0.00013698,2]
[324834295,1714363652920,-767.32,0.00013698,2]
[324834296,1714363652940,-500.0,0.00013698,2]
[324834297,1714363652961,-500.0,0.00013698,2]
[324834298,1714363652981,-500.0,0.00013698,2]
[324834299,1714363653001,-500.0,0.00013698,2]
[324834300,1714363653021,-500.0,0.00013698,2]
[324834301,1714363653041,-500.0,0.00013698,2]
[324834302,1714363653061,-500.0,0.00013698,2]
[324834303,1714363653080,-500.0,0.00013698,2]
[324834304,1714363653100,-500.90423701,0.00013698,2]
[324834305,1714363653120,-394.87380458,0.00013698,2]
[324834306,1714363653139,-500.0,0.00013698,2]
[324834307,1714363653161,-500.0,0.00013698,2]
[324834308,1714363653181,-500.0,0.00013698,2]
[324834309,1714363653199,-925.29,0.00013698,2]
[324834310,1714363653220,-500.0,0.00013698,2]
[324834311,1714363653241,-501.1423942,0.00013698,2]
[324834312,1714363653263,-308.74394132,0.00013698,2]
[324834313,1714363653507,-191.25605868,0.00013698,2]
[324834314,1714363653525,-443.03854512,0.00013698,2]
[324834315,1714363672258,249.30400065,0.0001,2]
[324834317,1714363786295,500.0,0.00013698,4]
[324834318,1714363786919,500.0,0.00013698,5]
[324834319,1714363787186,500.0,0.00013698,5]
[324834320,1714363787777,491.94,0.00013698,5]
[324834348,1714363832599,-2000.0,0.00013499,2]
[324834350,1714363832612,-159.00591884,0.00013597,2]
[324834352,1714363832621,-300.0,0.00013597,2]
[324834354,1714363832631,-300.0,0.00013597,2]
[324834356,1714363832640,-159.00591884,0.00013598,2]
[324834357,1714363832649,-44444.0,0.00013598,2]
[324834360,1714363832658,-1481.0937777,0.00013697,2]
[324834361,1714363832667,-14408.67005025,0.00013697,2]
[324834363,1714363832676,-56.96145488,0.00013698,2]
[324834365,1714363832685,-500.0,0.00013698,2]
[324834367,1714363832694,-500.0,0.00013698,2]
[324834369,1714363832703,-500.0,0.00013698,2]
[324834371,1714363832712,-500.0,0.00013698,2]
[324834373,1714363832721,-406.11895496,0.00013698,2]
[324834376,1714363832740,-93.88104504,0.00013698,2]
[324834378,1714363832749,-500.0,0.00013698,2]
[324834380,1714363832757,-500.0,0.00013698,2]
[324834382,1714363832767,-500.0,0.00013698,2]
[324834384,1714363832776,-481.18646576,0.00013698,2]
[324834386,1714363832785,-332.0123228,0.00013698,2]
[324834609,1714363838500,-167.9876772,0.00013698,2]
[324834611,1714363838510,-500.0,0.00013698,2]
[324834613,1714363838522,-500.0,0.00013698,2]
[324834615,1714363838532,-500.0,0.00013698,2]
[324834617,1714363838542,-542.1861114,0.00013698,2]
[324834620,1714363838553,-500.0,0.00013698,2]
[324834621,1714363838562,-500.0,0.00013698,2]
[324834623,1714363838572,-500.0,0.00013698,2]
[324834625,1714363838581,-777.48,0.00013698,2]
[324834627,1714363838591,-151.0,0.00013698,2]
[324834629,1714363838601,-39.9653204,0.00013698,2]
[324834632,1714363838614,-460.0346796,0.00013698,2]
[324834634,1714363838623,-82.32532042,0.00013698,2]
[324834636,1714363838635,-467.126,0.00013698,2]
[324834732,1714363842426,-61.17292471,0.00013698,2]
[324834733,1714363842436,-510.98,0.00013698,2]
[324834735,1714363842446,-500.55037009,0.00013698,2]
[324834737,1714363842455,-500.0,0.00013698,2]
[324834739,1714363842464,-500.0,0.00013698,2]
[324834741,1714363842479,-500.0,0.00013698,2]
[324834743,1714363842488,-500.0,0.00013698,2]
[324834745,1714363842497,-500.0,0.00013698,2]
[324834747,1714363842506,-500.0,0.00013698,2]
[324834749,1714363842515,-500.0,0.00013698,2]
[324834751,1714363842526,-500.0,0.00013698,2]
[324834753,1714363842535,-500.0,0.00013698,2]
[324834755,1714363842544,-1558.0,0.00013698,2]
[324834757,1714363842553,-504.41651029,0.00013698,2]
[324834759,1714363842564,-500.0,0.00013698,2]
[324834761,1714363842574,-500.0,0.00013698,2]
[324834763,1714363842583,-805.81,0.00013698,2]
[324834765,1714363842592,-400.55253783,0.00013698,2]
[324834767,1714363842601,-500.0,0.00013698,2]
[324834769,1714363842611,-500.0,0.00013698,2]
[324834771,1714363842620,-500.0,0.00013698,2]
[324834773,1714363842629,-500.0,0.00013698,2]
[324834775,1714363842639,-500.0,0.00013698,2]
[324834777,1714363842648,-500.0,0.00013698,2]
[324834779,1714363842657,-500.0,0.00013698,2]
[324834782,1714363842668,-500.0,0.00013698,2]
[324834784,1714363842678,-907.18,0.00013698,2]
[324834785,1714363842687,-500.0,0.00013698,2]
[324834786,1714363842697,-500.0,0.00013698,2]
[324834787,1714363842706,-500.0,0.00013698,2]
[324834788,1714363842715,-808.14,0.00013698,2]
[324834789,1714363842724,-500.0,0.00013698,2]
[324834790,1714363842734,-500.0,0.00013698,2]
[324834791,1714363842743,-500.0,0.00013698,2]
[324834792,1714363842752,-500.0,0.00013698,2]
[324834793,1714363842762,-500.0,0.00013698,2]
[324834794,1714363842771,-500.0,0.00013698,2]
[324834795,1714363842780,-500.0,0.00013698,2]
[324834796,1714363842790,-500.0,0.00013698,2]
[324834797,1714363842799,-500.0,0.00013698,2]
[324834798,1714363842809,-500.0,0.00013698,2]
[324834799,1714363842818,-718.35,0.00013698,2]
[324834800,1714363842827,-500.0,0.00013698,2]
[324834801,1714363842836,-500.0,0.00013698,2]
[324834802,1714363842845,-500.0,0.00013698,2]
[324834803,1714363842856,-1731.85,0.00013698,2]
[324834806,1714363842865,-651.31,0.00013698,2]
[324834808,1714363842875,-500.0,0.00013698,2]
[324834810,1714363842883,-500.0,0.00013698,2]
[324834811,1714363842893,-500.0,0.00013698,2]
[324834813,1714363842902,-504.16268197,0.00013698,2]
[324834815,1714363842911,-466.48480987,0.00013698,2]
[324834818,1714363842920,-500.0,0.00013698,2]
[324834821,1714363842930,-828.2,0.00013698,2]
[324834823,1714363842939,-500.0,0.00013698,2]
[324834825,1714363842948,-500.0,0.00013698,2]
[324834827,1714363842957,-500.0,0.00013698,2]
[324834829,1714363842966,-500.0,0.00013698,2]
[324834832,1714363842975,-500.0,0.00013698,2]
[324834834,1714363842984,-793.72,0.00013698,2]
[324834836,1714363842994,-500.0,0.00013698,2]
[324834838,1714363843003,-500.0,0.00013698,2]
[324834840,1714363843012,-500.0,0.00013698,2]
[324834842,1714363843021,-500.0,0.00013698,2]
[324834844,1714363843030,-500.0,0.00013698,2]
[324834846,1714363843039,-500.0,0.00013698,2]
[324834848,1714363843048,-500.0,0.00013698,2]
[324834850,1714363843057,-500.0,0.00013698,2]
[324834852,1714363843067,-500.0,0.00013698,2]
[324834853,1714363843076,-2061.76,0.00013698,2]
[324834854,1714363843085,-607.48,0.00013698,2]
[324834856,1714363843094,-500.0,0.00013698,2]
[324834857,1714363843103,-500.0,0.00013698,2]
[324834859,1714363843113,-629.43,0.00013698,2]
[324834860,1714363843122,-500.0,0.00013698,2]
[324834861,1714363843131,-719.41,0.00013698,2]
[324834864,1714363843141,-500.0,0.00013698,2]
[324834867,1714363843150,-500.0,0.00013698,2]
[324834869,1714363843159,-437.11914342,0.00013698,2]
[324834871,1714363843168,-500.0,0.00013698,2]
[324834873,1714363843177,-500.0,0.00013698,2]
[324834874,1714363843186,-155.14526043,0.00013698,2]
[324834876,1714363843195,-500.0,0.00013698,2]
[324834879,1714363843204,-500.0,0.00013698,2]
[324834882,1714363843213,-500.0,0.00013698,2]
[324834884,1714363843222,-500.0,0.00013698,2]
[324834885,1714363843231,-1269.0,0.00013698,2]
[324834887,1714363843240,-500.0,0.00013698,2]
[324834889,1714363843250,-500.0,0.00013698,2]
[324834894,1714363843361,-530.42,0.00013698,2]
[324834895,1714363843371,-500.0,0.00013698,2]
[324834896,1714363843380,-500.0,0.00013698,2]
[324834897,1714363843389,-590.88,0.00013698,2]
[324834898,1714363843398,-500.0,0.00013698,2]
[324834899,1714363843407,-500.0,0.00013698,2]
[324834900,1714363843416,-500.0,0.00013698,2]
[324834901,1714363843426,-209.81736707,0.00013698,2]
[324834902,1714363843435,-500.0,0.00013698,2]
[324834903,1714363843444,-500.0,0.00013698,2]
[324834904,1714363843454,-500.0,0.00013698,2]
[324834905,1714363843463,-500.0,0.00013698,2]
[324834906,1714363843473,-500.0,0.00013698,2]
[324834908,1714363843486,-500.0,0.00013698,2]
[324834909,1714363843495,-1185.73,0.00013698,2]
[324834910,1714363843504,-484.46381902,0.00013698,2]
[324834911,1714363843513,-500.0,0.00013698,2]
[324834912,1714363843523,-500.0,0.00013698,2]
[324834913,1714363843532,-500.0,0.00013698,2]
[324834914,1714363843541,-500.0,0.00013698,2]
[324834915,1714363843551,-500.0,0.00013698,2]
[324834916,1714363843562,-500.0,0.00013698,2]
[324834917,1714363843571,-500.0,0.00013698,2]